bitfinex-derivatives/quotes_SOLF0:USTF0_20250614
["timestamp","ask_amount","ask_price","bid_price","bid_amount"]
[1749932775397,14.12666355,142.58,142.57,2.56e-05]
[1749932778494,7.0108,142.58,142.57,2.56e-05]
[1749932782099,14.12666355,142.58,142.57,2.56e-05]
[1749932783303,7.0105,142.59,142.57,2.56e-05]
[1749932783504,0.05269381,142.61,142.57,36.3400256]
[1749932783706,0.05269381,142.61,142.58,7.0106]
[1749932783900,0.05269381,142.61,142.57,36.3400256]
[1749932784096,0.05269381,142.61,142.57,38.6506256]
[1749932784503,0.05269381,142.61,142.58,2.3877]
[1749932785000,0.05269381,142.61,142.6,7.0099]
[1749932785610,7.0073,142.66,142.6,7.10897534]
[1749932785808,48.12657534,142.7,142.61,36.34]
[1749932786107,7.10550311,142.68,142.61,36.34]
[1749932786609,7.0082,142.64,142.63,0.05220117]
[1749932789111,7.0076,142.65,142.63,0.05220117]
[1749932794218,0.053317,142.66,142.64,7.0078]
[1749932794518,0.053317,142.66,142.63,0.05220117]
[1749932794914,4.79743666,142.65,142.63,0.05220117]
[1749932795506,4.79743666,142.65,142.61,36.34]
[1749932795712,4.79743666,142.62,142.58,36.32]
[1749932795914,4.79743666,142.59,142.55,36.32]
[1749932796110,4.79743666,142.57,142.55,36.32]
[1749932796311,4.79743666,142.57,142.53,2.2982]
[1749932796510,7.06080356,142.56,142.54,0.04483579]
[1749932796814,0.04890356,142.56,142.54,0.04483579]
[1749932798011,41.12653732,142.55,142.44,13.04876025]
[1749932798221,4.8108612,142.45,142.29,2.2631]
[1749932798406,4.8108612,142.36,142.29,6.788]
[1749932798809,41.1508612,142.4,142.3,41.1508612]
[1749932799009,0.04848161,142.36,142.34,0.05100817]
[1749932799210,0.04848161,142.36,142.34,36.39100817]
[1749932799523,43.47489375,142.43,142.34,36.39100817]
[1749932799711,43.47489375,142.43,142.34,36.34]
[1749932800216,7.02,142.4,142.35,7.022]
[1749932800517,0.05117709,142.39,142.36,0.04423685]
[1749932800708,7.0183,142.43,142.36,0.04423685]
[1749932801114,7.0183,142.43,142.39,7.0202]
[1749932801312,7.0178,142.44,142.39,43.3602]
[1749932801517,36.34,142.46,142.39,43.3602]
[1749932801709,0.04429236,142.44,142.41,0.04656482]
[1749932802921,7.06199236,142.44,142.41,0.04656482]
[1749932804328,0.04429236,142.44,142.41,0.04656482]
[1749932806925,0.04429236,142.44,142.41,7.06566482]
[1749932808622,0.04429236,142.44,142.41,0.04656482]
[1749932811830,0.04429236,142.44,142.41,7.06566482]
[1749932813338,43.50889397,142.49,142.41,0.04656482]
[1749932813631,7.0171,142.46,142.41,0.04656482]
[1749932813935,36.38,142.49,142.41,0.04656482]
[1749932814233,7.12889397,142.5,142.41,0.04656482]
[1749932814434,0.04853082,142.46,142.44,0.04666558]
[1749932816534,7.17742479,142.46,142.44,0.04666558]
[1749932817633,0.04853082,142.46,142.44,0.04666558]
[1749932818029,8.68896764,142.45,142.44,0.00549911]
[1749932818229,8.68890078,142.45,142.44,0.00549911]
[1749932818431,5.58200924,142.45,142.44,0.00549911]
[1749932818737,5.58237818,142.45,142.44,0.00549911]
[1749932818923,5.5823488,142.45,142.4,36.4]
[1749932819124,7.06553082,142.46,142.42,7.0184]
[1749932819326,8.68897988,142.45,142.42,7.0184]
[1749932819530,8.68872373,142.44,142.42,7.0184]
[1749932819731,8.68869699,142.43,142.42,7.0184]
[1749932819931,8.62043005,142.43,142.42,7.0184]
[1749932820440,8.62050625,142.43,142.42,7.0184]
[1749932820735,5.51400993,142.43,142.42,7.0184]
[1749932820939,0.04853082,142.46,142.45,7.0172]
[1749932821135,8.61994889,142.46,142.45,7.0172]
[1749932821440,7.0148,142.5,142.45,2.2924]
[1749932821736,7.12889397,142.53,142.47,7.0159]
[1749932822132,36.4,142.54,142.45,9.42129397]
[1749932822332,0.04552911,142.51,142.48,7.06668276]
[1749932822532,0.04552911,142.51,142.48,43.46668276]
[1749932823935,0.04552911,142.51,142.49,7.0152]
[1749932824540,0.04552911,142.51,142.5,7.0148]
[1749932825028,0.04552911,142.51,142.49,7.0151]
[1749932825233,0.04552911,142.51,142.48,36.45108276]
[1749932825635,0.04552911,142.51,142.5,7.0148]
[1749932830147,9.91589397,142.59,142.53,7.0131]
[1749932830944,9.91589397,142.59,142.52,36.4]
[1749932831143,9.91589397,142.59,142.54,0.05192236]
[1749932831647,7.0121,142.56,142.54,0.05192236]
[1749932832449,7.0123,142.55,142.54,0.05192236]
[1749932834950,7.012,142.56,142.54,0.05192236]
[1749932835350,7.12889397,142.57,142.54,0.05192236]
[1749932835652,7.0118,142.56,142.54,0.05192236]
[1749932837950,7.0123,142.55,142.54,0.05192236]
[1749932844058,14.80313681,142.55,142.54,0.05192236]
[1749932844358,11.87482249,142.55,142.54,0.05192236]
[1749932844562,14.78331205,142.55,142.54,0.05192236]
[1749932844948,9.92052327,142.55,142.54,0.05192236]
[1749932845159,14.78321083,142.55,142.54,0.05192236]
[1749932845565,14.78312886,142.55,142.54,0.05192236]
[1749932845767,14.78312102,142.55,142.54,0.05192236]
[1749932846065,14.78307161,142.55,142.54,0.05192236]
[1749932846253,14.78307394,142.55,142.54,0.05192236]
[1749932846455,14.78307161,142.55,142.54,0.05192236]
[1749932846757,14.7829242,142.55,142.54,0.05192236]
[1749932846959,14.78299008,142.55,142.54,0.05192236]
[1749932847263,2.90834579,142.55,142.54,0.05192236]
[1749932847454,7.77152388,142.55,142.54,0.05192236]
[1749932847661,7.77178737,142.55,142.54,0.05192236]
[1749932847959,2.90876826,142.55,142.54,0.05192236]
[1749932848164,2.90883861,142.55,142.54,0.05192236]
[1749932848359,7.77190131,142.55,142.54,0.05192236]
[1749932848566,2.9088459,142.55,142.54,0.05192236]
[1749932848755,2.9008514,142.55,142.54,0.05192236]
[1749932848959,7.0119,142.56,142.54,0.05192236]
[1749932849165,2.90085433,142.55,142.54,0.05192236]
[1749932849664,2.9008287,142.55,142.54,0.05192236]
[1749932849964,7.0119,142.56,142.54,0.05192236]
[1749932850167,2.90085605,142.55,142.54,7.06472236]
[1749932850365,7.0119,142.56,142.54,7.06472236]
[1749932850562,7.0119,142.56,142.54,0.05192236]
[1749932850873,36.4,142.6,142.54,0.05192236]
[1749932850874,4.80400895,142.61,142.54,0.05192236]
[1749932851061,2.90185387,142.6,142.57,4.80400895]
[1749932851259,7.0082,142.64,142.58,36.32]
[1749932851460,2.90218132,142.63,142.6,0.04929471]
[1749932851755,7.0084,142.63,142.6,7.05879471]
[1749932852566,4.80400895,142.66,142.6,0.04929471]
[1749932852766,4.80400895,142.62,142.6,0.04929471]
[1749932852954,7.75285278,142.61,142.6,0.04929471]
[1749932853159,2.90184693,142.61,142.6,0.04929471]
[1749932853562,2.90198671,142.61,142.6,0.04929471]
[1749932853768,14.76260316,142.61,142.6,0.04929471]
[1749932853966,14.7627166,142.61,142.6,0.04929471]
[1749932854267,14.76278037,142.61,142.6,0.04929471]
[1749932854565,14.76289009,142.61,142.6,0.04929471]
[1749932854865,14.76143027,142.61,142.6,0.04929471]
[1749932855066,7.0094,142.61,142.6,0.04929471]
[1749932855362,11.85633702,142.61,142.6,0.04929471]
[1749932855668,11.85666191,142.61,142.6,0.04929471]
[1749932855969,9.91013172,142.61,142.6,0.04929471]
[1749932856167,9.91013123,142.61,142.6,0.04929471]
[1749932856663,9.92038282,142.61,142.6,0.04929471]
[1749932856862,7.0091,142.62,142.6,0.04929471]
[1749932857065,4.80400895,142.64,142.6,0.04929471]
[1749932857269,7.0089,142.62,142.6,0.04929471]
[1749932857567,4.80400895,142.66,142.6,7.05909471]
[1749932857762,7.78384057,142.65,142.6,0.04929471]
[1749932858068,7.78406261,142.64,142.62,7.0088]
[1749932858374,7.78449394,142.63,142.62,36.3687909]
[1749932858567,7.0072,142.66,142.62,43.3772909]
[1749932858758,7.0072,142.66,142.62,36.3687909]
[1749932858954,7.0064,142.67,142.62,36.3687909]
[1749932859165,41.12400895,142.7,142.62,41.17279985]
[1749932859470,7.0057,142.69,142.65,0.04723339]
[1749932859869,7.0057,142.69,142.66,7.0069]
[1749932860866,9.45762746,142.72,142.65,0.04723339]
[1749932861066,4.86952754,142.71,142.65,0.04723339]
[1749932861273,2.91260522,142.7,142.65,0.04723339]
[1749932861473,7.0057,142.69,142.65,7.05423339]
[1749932861671,7.0057,142.69,142.66,36.3]
[1749932862470,7.0057,142.69,142.66,43.3069]
[1749932863268,7.0051,142.7,142.67,7.0063]
[1749932863461,9.45762746,142.72,142.67,7.0063]
[1749932863462,7.10382746,142.72,142.67,0.05336235]
[1749932865976,7.0054,142.7,142.67,0.05336235]
[1749932866770,7.10382746,142.72,142.67,0.05336235]
[1749932867475,2.92670538,142.71,142.67,0.05336235]
[1749932867680,7.10382746,142.72,142.67,0.05336235]
[1749932867976,7.0057,142.69,142.67,0.05336235]
[1749932868280,7.10382746,142.7,142.67,0.05336235]
[1749932868580,14.10972746,142.68,142.67,0.05336235]
[1749932869877,7.10382746,142.68,142.61,2.2692]
[1749932870070,7.10382746,142.63,142.6,36.28]
[1749932870582,7.0092,142.62,142.6,36.28]
[1749932870973,7.06037712,142.62,142.6,36.32982833]
[1749932871174,0.05117712,142.62,142.6,36.32982833]
[1749932871779,7.06007712,142.62,142.6,36.32982833]
[1749932872379,0.05117712,142.62,142.6,36.32982833]
[1749932873073,7.06027712,142.62,142.6,36.32982833]
[1749932873389,0.05117712,142.62,142.6,36.32982833]
[1749932873678,7.0094,142.61,142.6,0.04982833]
[1749932878874,7.0094,142.61,142.6,2.833e-05]
[1749932878875,14.11322746,142.61,142.6,2.833e-05]
[1749932879076,7.012,142.56,142.54,440.28]
[1749932879476,7.012,142.56,142.54,36.28]
[1749932880085,7.05718033,142.56,142.54,36.33206616]
[1749932880277,0.04518033,142.56,142.54,36.33206616]
[1749932881483,0.04518033,142.56,142.54,43.34456616]
[1749932882887,0.04518033,142.56,142.55,7.0123]
[1749932883277,0.04518033,142.56,142.54,36.33206616]
[1749932884984,4.80355305,142.62,142.55,2.2184]
[1749932885188,43.39695305,142.64,142.56,4.80355305]
[1749932885383,7.0091,142.62,142.58,7.0105]
[1749932885581,7.0091,142.62,142.58,43.3105]
[1749932885782,7.0091,142.62,142.58,36.3]
[1749932885984,7.05694172,142.61,142.59,0.05002244]
[1749932887683,0.04754172,142.61,142.59,7.06032244]
[1749932887883,0.04754172,142.61,142.59,0.05002244]
[1749932888593,0.04754172,142.61,142.6,7.0098]
[1749932888988,7.0081,142.64,142.61,7.0093]
[1749932889183,7.0076,142.65,142.62,36.3]
[1749932889492,7.11121376,142.69,142.62,36.3]
[1749932889992,7.11121376,142.69,142.64,0.04884945]
[1749932890180,0.02826488,142.67,142.64,0.04884945]
[1749932891196,7.0074,142.65,142.64,0.04884945]
[1749932891999,7.11121376,142.65,142.59,36.3]
[1749932892892,0.04748182,142.63,142.61,0.05399113]
[1749932893095,7.0089,142.62,142.61,0.05399113]
[1749932898902,7.05608182,142.63,142.61,0.05399113]
[1749932899107,0.04748182,142.63,142.61,0.05399113]
[1749932900498,7.0089,142.62,142.61,0.05399113]
[1749932902702,7.05608182,142.63,142.61,0.05399113]
[1749932902908,0.04748182,142.63,142.61,0.05399113]
[1749932903403,7.0089,142.62,142.61,0.05399113]
[1749932908204,7.05598182,142.63,142.61,0.05399113]
[1749932908509,0.04748182,142.63,142.61,0.05399113]
[1749932909103,0.04748182,142.63,142.62,7.0089]
[1749932909503,38.536,142.69,142.61,0.05399113]
[1749932909504,7.0067,142.67,142.61,0.05399113]
[1749932909707,4.79720329,142.7,142.62,4.79720329]
[1749932910216,4.79720329,142.7,142.63,7.0081]
[1749932910607,7.0069,142.67,142.65,0.0453237]
[1749932914122,7.0069,142.66,142.65,0.0453237]
[1749932921625,11.80410329,142.66,142.65,0.0453237]
[1749932923424,7.0066,142.67,142.65,0.0453237]
[1749932928922,0.02963251,142.68,142.65,0.0453237]
[1749932929621,0.02963251,142.68,142.65,2.3834237]
[1749932930421,0.02963251,142.68,142.66,7.0066]
[1749932934526,0.02963251,142.68,142.67,7.0064]
[1749932935222,5.75650454,142.77,142.7,7.0049]
[1749932935223,4.5368,142.77,142.7,7.0049]
[1749932935427,7.03120329,142.77,142.7,36.22]
[1749932935624,4.79720329,142.77,142.7,36.22]
[1749932935823,4.79720329,142.79,142.7,36.22]
[1749932936022,4.79720329,142.79,142.71,4.79720329]
[1749932936227,7.0016,142.77,142.74,7.05589518]
[1749932936427,7.0016,142.77,142.74,43.27589518]
[1749932936732,43.24680329,142.81,142.74,36.27319518]
[1749932937030,7.0012,142.78,142.75,7.0022]
[1749932937229,7.0012,142.78,142.75,7.053697]
[1749932937634,4.79720329,142.82,142.75,0.051497]
[1749932937830,4.79720329,142.82,142.77,0.04585402]
[1749932938828,7.001,142.78,142.77,0.04585402]
[1749932939230,11.79820329,142.78,142.77,0.04585402]
[1749932939720,11.79820329,142.78,142.71,36.22]
[1749932939721,11.79720329,142.78,142.71,36.22]
[1749932939922,4.79720329,142.73,142.68,43.2259]
[1749932940122,7.0044,142.72,142.68,43.2259]
[1749932940425,4.79720329,142.71,142.68,36.22]
[1749932940628,4.84305731,142.71,142.68,36.269806]
[1749932940834,7.0052,142.7,142.68,36.269806]
[1749932941839,4.84305731,142.71,142.68,36.269806]
[1749932942233,7.005,142.7,142.68,36.269806]
[1749932943739,0.04585402,142.71,142.68,36.269806]
[1749932944042,36.22,142.79,142.7,4.79720329]
[1749932944237,7.0018,142.77,142.73,7.0032]
[1749932944540,4.79720329,142.8,142.73,36.22]
[1749932944729,45.70680329,142.82,142.74,4.79720329]
[1749932944925,7.0003,142.8,142.76,7.0017]
[1749932945129,45.70680329,142.82,142.77,0.05238894]
[1749932945339,48.00335632,142.82,142.77,0.05238894]
[1749932945930,45.61675632,142.82,142.77,0.05238894]
[1749932946333,7.0008,142.79,142.77,0.05238894]
[1749932947436,7.001,142.78,142.77,0.05238894]
[1749932949236,36.22,142.82,142.77,0.05238894]
[1749932949741,7.0003,142.8,142.77,43.27378894]
[1749932950732,7.0003,142.8,142.77,36.27238894]
[1749932951736,7.0003,142.8,142.77,43.27358894]
[1749932953147,7.09375632,142.84,142.77,43.27378894]
[1749932953539,7.09375632,142.84,142.77,36.27238894]
[1749932953844,36.22,142.85,142.77,36.27238894]
[1749932954048,36.22,142.85,142.8,0.04947725]
[1749932954248,6.9994,142.82,142.8,0.04947725]
[1749932955049,6.9982,142.84,142.81,43.1994]
[1749932955350,6.9982,142.84,142.81,43.24838921]
[1749932956147,7.09375632,142.87,142.81,43.24838921]
[1749932956748,6.9984,142.84,142.81,36.24898921]
[1749932957458,7.09375632,142.85,142.81,36.24898921]
[1749932958247,36.2,142.88,142.81,36.24898921]
[1749932958248,6.999,142.82,142.81,0.04898921]
[1749932959653,6.999,142.82,142.81,8.921e-05]
[1749932959853,7.09375632,142.83,142.75,36.16]
[1749932960059,7.09375632,142.8,142.75,36.16]
[1749932960959,0.04898921,142.79,142.76,0.04698609]
[1749932961143,7.0019,142.77,142.76,0.04698609]
[1749932963251,0.04898921,142.79,142.72,36.16]
[1749932963252,7.09375632,142.78,142.72,36.16]
[1749932963455,7.09375632,142.76,142.72,36.16]
[1749932964249,0.0528307,142.75,142.73,0.04957533]
[1749932964655,7.0034,142.74,142.73,0.04957533]
[1749932970961,0.0528307,142.75,142.73,0.04957533]
[1749932972364,7.003,142.74,142.73,0.04957533]
[1749932972756,0.0528307,142.75,142.73,0.04957533]
[1749932973149,4.79019341,142.81,142.73,0.04957533]
[1749932973354,2.4011,142.82,142.72,40.95019341]
[1749932973355,4.78922155,142.8,142.72,36.16]
[1749932973559,7.0008,142.79,142.75,7.0022]
[1749932973753,7.0008,142.79,142.72,36.16]
[1749932974058,7.0011,142.78,142.75,7.0022]
[1749932974261,7.0442446,142.78,142.75,7.05610021]
[1749932974956,4.78922155,142.77,142.75,0.05390021]
[1749932975549,7.002,142.76,142.75,0.05390021]
[1749932977560,7.002,142.76,142.75,2.1e-07]
[1749932979164,4.78922155,142.77,142.69,38.437]
[1749932979361,4.78922155,142.73,142.69,38.437]
[1749932979665,7.0047,142.71,142.69,38.437]
[1749932980162,4.78922155,142.7,142.66,36.18]
[1749932981056,7.0057,142.69,142.66,36.18]
[1749932981261,0.05086621,142.69,142.66,36.23309218]
[1749932981665,7.0062,142.68,142.66,36.23309218]
[1749932982358,0.05086621,142.69,142.66,36.23309218]
[1749932983568,7.05646621,142.69,142.66,36.23309218]
[1749932983766,7.05646621,142.69,142.66,43.23989218]
[1749932984965,7.0059,142.68,142.66,36.23309218]
[1749932987368,7.05656621,142.69,142.66,36.23309218]
[1749932987562,4.78922155,142.68,142.66,0.05309218]
[1749932988468,7.0064,142.67,142.66,0.05309218]
[1749932989368,4.78922155,142.68,142.6,439.54]
[1749932989560,4.78922155,142.64,142.6,439.54]
[1749932989763,4.78922155,142.64,142.6,446.5495]
[1749932990059,7.0082,142.64,142.6,439.54]
[1749932990370,0.04523734,142.63,142.61,0.04863208]
[1749932992264,4.83445889,142.63,142.61,0.04863208]
[1749932992465,4.83445889,142.63,142.57,38.4378]
[1749932992664,4.78922155,142.6,142.57,38.4378]
[1749932992879,7.0105,142.59,142.57,38.4378]
[1749932993473,7.05667805,142.59,142.57,38.48451671]
[1749932993974,0.04617805,142.59,142.57,38.48451671]
[1749932994969,0.04617805,142.59,142.57,45.49561671]
[1749932995170,7.05657805,142.59,142.57,38.48451671]
[1749932996070,7.0108,142.58,142.57,36.20671671]
[1749932996474,7.0108,142.58,142.57,0.04671671]
[1749933001283,0.04617805,142.59,142.57,0.04671671]
[1749933001484,4.78922155,142.58,142.57,0.04671671]
[1749933001684,11.80002155,142.58,142.57,0.04671671]
[1749933002179,4.78922155,142.58,142.54,36.18]
[1749933002382,7.0123,142.55,142.54,36.18]
[1749933002577,7.0123,142.55,142.53,2.2064]
[1749933002780,4.78922155,142.6,142.53,2.2064]
[1749933003077,7.05863664,142.58,142.55,0.05058573]
[1749933003474,7.0113,142.57,142.55,0.05058573]
[1749933003678,4.83675819,142.58,142.55,0.05058573]
[1749933004075,7.0118,142.56,142.55,0.05058573]
[1749933004275,0.04753664,142.58,142.55,0.05058573]
[1749933004874,7.05863664,142.58,142.55,7.06278573]
[1749933005077,0.04753664,142.58,142.55,0.05058573]
[1749933005576,7.0116,142.57,142.55,0.05058573]
[1749933006482,7.05853664,142.58,142.55,7.06288573]
[1749933006680,0.04753664,142.58,142.55,43.24288573]
[1749933007070,0.04753664,142.58,142.55,36.23058573]
[1749933007981,7.0116,142.57,142.55,36.23058573]
[1749933008481,0.04753664,142.58,142.55,43.24288573]
[1749933008677,4.78922155,142.63,142.55,36.23058573]
[1749933008880,4.78922155,142.63,142.58,7.0106]
[1749933009387,4.78922155,142.63,142.56,4.78922155]
[1749933009685,0.0446751,142.61,142.58,0.04691971]
[1749933009888,0.0446751,142.61,142.59,36.2]
[1749933010074,4.78922155,142.63,142.59,40.9809]
[1749933010275,40.96922155,142.65,142.59,40.9809]
[1749933010679,40.96922155,142.65,142.59,47.991]
[1749933011185,0.0444118,142.63,142.59,47.991]
[1749933011578,7.0092,142.62,142.59,47.991]
[1749933011778,0.0444118,142.63,142.59,47.991]
[1749933012084,7.0530118,142.63,142.6,7.0096]
[1749933014291,7.0089,142.62,142.59,47.991]
[1749933015383,0.0444118,142.63,142.59,40.9809]
[1749933015584,7.0098,142.6,142.59,36.2]
[1749933015786,2.92459711,142.6,142.58,0.04691971]
[1749933015977,7.71355746,142.59,142.56,36.18]
[1749933016183,0.05197306,142.6,142.56,36.18]
[1749933016184,4.78922155,142.57,142.56,36.18]
[1749933016383,4.78922155,142.57,142.52,4.7121]
[1749933016384,7.0118,142.56,142.53,43.1931]
[1749933016885,0.04928054,142.56,142.53,43.23979218]
[1749933017488,0.04928054,142.56,142.53,36.22669218]
[1749933017784,7.14022155,142.63,142.54,4.78922155]
[1749933017987,7.78461673,142.62,142.56,4.78922155]
[1749933018186,12.39,142.64,142.57,38.4794]
[1749933018489,2.92328924,142.63,142.57,38.4794]
[1749933018689,0.05234281,142.61,142.59,0.04436697]
[1749933019191,0.05234281,142.61,142.59,7.05446697]
[1749933019787,4.84156436,142.61,142.59,0.04436697]
[1749933019993,2.92903121,142.6,142.59,0.04436697]
[1749933020293,7.0098,142.6,142.59,0.04436697]
[1749933020985,9.93922165,142.6,142.59,0.04436697]
[1749933021187,7.0098,142.6,142.59,0.04436697]
[1749933021492,9.93853182,142.6,142.59,0.04436697]
[1749933021692,9.93870058,142.6,142.59,0.04436697]
[1749933021889,7.0098,142.6,142.59,0.04436697]
[1749933022091,9.93863997,142.6,142.59,0.04436697]
[1749933022386,14.80489421,142.6,142.59,0.04436697]
[1749933022691,14.80509083,142.6,142.59,0.04436697]
[1749933022990,9.9388743,142.6,142.59,0.04436697]
[1749933023193,2.92923539,142.6,142.59,0.04436697]
[1749933023402,11.85116436,142.61,142.59,0.04436697]
[1749933023788,7.0098,142.6,142.59,0.04436697]
[1749933023989,4.84156436,142.61,142.59,0.04436697]
[1749933023990,0.05234281,142.61,142.59,0.04436697]
[1749933024682,0.05234281,142.61,142.59,7.05456697]
[1749933025086,7.0098,142.6,142.59,0.04436697]
[1749933026888,0.05234281,142.61,142.59,0.04436697]
[1749933027694,7.06184281,142.61,142.59,0.04436697]
[1749933028096,4.85251866,142.61,142.59,0.04436697]
[1749933028295,7.0098,142.6,142.59,0.04436697]
[1749933030683,11.86201866,142.61,142.59,0.04436697]
[1749933030896,0.05234281,142.61,142.59,0.04436697]
[1749933032698,0.05234281,142.61,142.59,7.05456697]
[1749933033399,0.05234281,142.61,142.6,7.0098]
[1749933034491,11.86,142.63,142.59,0.04436697]
[1749933034700,11.86,142.63,142.62,7.0089]
[1749933034899,22.9271,142.66,142.62,36.16]
[1749933035093,22.9271,142.66,142.64,7.0079]
[1749933035697,22.9271,142.66,142.65,7.0074]
[1749933035698,15.96516509,142.66,142.65,7.0074]
[1749933035894,15.96516509,142.66,142.64,0.04468527]
[1749933036093,0.04516509,142.66,142.64,0.04468527]
[1749933036295,0.04516509,142.66,142.64,7.05228527]
[1749933036491,0.04516509,142.66,142.64,0.04468527]
[1749933036697,0.04516509,142.66,142.64,7.05228527]
[1749933038004,0.04516509,142.66,142.65,7.0074]
[1749933038200,7.05107585,142.71,142.64,0.04468527]
[1749933038410,11.55,142.7,142.66,7.0066]
[1749933038704,22.23,142.7,142.66,43.1666]
[1749933038905,22.23,142.7,142.66,36.16]
[1749933039105,22.23,142.7,142.68,7.0058]
[1749933039299,22.27662365,142.7,142.68,7.04999071]
[1749933040008,22.27662365,142.7,142.69,7.0054]
[1749933040708,10.72662365,142.7,142.69,7.0054]
[1749933042404,4.80017585,142.75,142.71,7.0043]
[1749933043003,13.35,142.76,142.7,36.14]
[1749933043204,4.80017585,142.73,142.65,4.5622]
[1749933043510,6.035e-05,142.7,142.69,7.0052]
[1749933043716,13.35,142.76,142.69,40.94017585]
[1749933044008,13.35,142.76,142.73,7.0035]
[1749933044210,13.35,142.76,142.73,36.14]
[1749933044409,20.3523,142.76,142.73,36.14]
[1749933044609,20.3523,142.76,142.73,36.18681195]
[1749933045008,18.15017585,142.76,142.73,36.18681195]
[1749933045208,7.0029,142.75,142.73,36.18681195]
[1749933045511,13.35,142.76,142.73,36.18681195]
[1749933046805,13.35,142.76,142.74,7.0029]
[1749933047207,7.003,142.74,142.73,0.04681195]
[1749933047810,4.80017585,142.75,142.73,0.04681195]
[1749933048201,13.35,142.76,142.73,0.04681195]
[1749933048411,20.3522,142.76,142.73,0.04681195]
[1749933050116,13.35,142.76,142.73,0.04681195]
[1749933050916,7.003,142.74,142.73,0.04681195]
[1749933051313,7.004,142.72,142.71,36.14]
[1749933051616,4.80017585,142.72,142.68,37.56]
[1749933052014,7.0054,142.69,142.68,37.56]
[1749933059417,0.05105991,142.7,142.68,37.56]
[1749933060314,15.7148,142.76,142.68,37.56]
[1749933060516,7.10522693,142.75,142.68,37.56]
[1749933061312,7.10522693,142.75,142.7,0.05146771]
[1749933061511,7.0043,142.72,142.7,0.05146771]
[1749933061718,7.10522693,142.75,142.7,0.05146771]
[1749933062619,7.0045,142.71,142.7,0.05146771]
[1749933063915,7.0042,142.72,142.7,0.05146771]
[1749933064119,15.7148,142.76,142.7,0.05146771]
[1749933064321,7.0039,142.73,142.7,0.05146771]
[1749933064522,7.10522693,142.74,142.7,0.05146771]
[1749933064924,13.35,142.76,142.7,0.05146771]
[1749933065824,13.35,142.76,142.72,7.0037]
[1749933066018,13.35,142.76,142.73,37.56]
[1749933066224,13.35,142.76,142.73,37.6124153]
[1749933066422,20.3523,142.76,142.73,44.6155153]
[1749933066619,13.35,142.76,142.73,37.6124153]
[1749933067222,13.35,142.76,142.75,7.0025]
[1749933067522,46.96422693,142.86,142.78,7.0006]
[1749933067724,7.10522693,142.84,142.81,0.05319901]
[1749933068111,6.9991,142.82,142.81,0.05319901]
[1749933069911,14.87053665,142.82,142.81,0.05319901]
[1749933070118,9.95647485,142.82,142.81,0.05319901]
[1749933070318,14.78510134,142.82,142.81,0.05319901]
[1749933070519,14.78539354,142.82,142.81,0.05319901]
[1749933070719,14.78676552,142.82,142.81,0.05319901]
[1749933070913,14.78757687,142.82,142.78,37.56]
[1749933071118,7.10522693,142.8,142.78,37.56]
[1749933071422,7.10522693,142.8,142.75,37.54]
[1749933071726,10.09479737,142.79,142.75,37.54]
[1749933071919,7.7879992,142.78,142.75,37.54]
[1749933072225,2.95836198,142.77,142.76,0.05248208]
[1749933072729,0.04529066,142.78,142.76,0.05248208]
[1749933074929,7.0015,142.77,142.76,0.05248208]
[1749933075119,2.95935862,142.77,142.72,37.54]
[1749933075428,4.79315784,142.73,142.7,37.54]
[1749933075626,4.79315784,142.73,142.69,37.54]
[1749933076218,0.0512959,142.72,142.7,0.0485714]
[1749933076626,7.0553959,142.72,142.7,0.0485714]
[1749933076926,0.0512959,142.72,142.7,0.0485714]
[1749933078125,7.0555959,142.72,142.7,0.0485714]
[1749933078320,0.0512959,142.72,142.7,0.0485714]
[1749933080721,0.0512959,142.72,142.7,7.0530714]
[1749933081332,0.0512959,142.72,142.7,0.0485714]
[1749933082618,2.3258959,142.72,142.7,0.0485714]
[1749933083435,9.3299959,142.72,142.7,0.0485714]
[1749933084327,7.0045,142.71,142.7,0.0485714]
[1749933084932,9.3300959,142.72,142.7,0.0485714]
[1749933085128,7.10073712,142.71,142.66,403.34]
[1749933085328,9.48783712,142.71,142.65,37.3]
[1749933085529,7.0052,142.7,142.65,37.3]
[1749933085729,9.48783712,142.71,142.66,7.0069]
[1749933086034,7.0057,142.69,142.65,37.3]
[1749933086234,0.04842591,142.68,142.66,0.047596]
[1749933086629,0.04842591,142.68,142.67,7.0064]
[1749933086833,7.10086396,142.76,142.67,7.10086396]
[1749933087032,2.3871,142.77,142.69,7.10086396]
[1749933087331,7.0023,142.76,142.73,7.0034]